fUSD/lending_fUSD_20240220
["ID","MTS","AMOUNT","RATE_DAILY","PERIOD"]
[314590987,1708437053483,-902.24880759,0.0004877,7]
[314590988,1708437053493,-160.15589891,0.0004877,2]
[314590989,1708437053503,-196.02103039,0.00048776,30]
[314590990,1708437053513,-10000.0,0.0004879,7]
[314590991,1708437053523,-154.05474448,0.00048791,30]
[314590992,1708437053532,-9980.16576651,0.000488,120]
[314590993,1708437053542,-204.210343,0.000488,30]
[314590994,1708437053552,-194.62126531,0.000488,13]
[314590995,1708437053562,-2279.72876254,0.000488,2]
[314590996,1708437053572,-210.60497361,0.000488,2]
[314590997,1708437053581,-797.23057259,0.000488,2]
[314590998,1708437053590,-151.31004068,0.00048818,30]
[314590999,1708437053600,-1616.23,0.00048825,30]
[314591000,1708437053614,-1616.23,0.00048825,30]
[314591001,1708437053624,-529.8095535,0.00048866,2]
[314591002,1708437053640,-440.4341691,0.00048866,2]
[314591003,1708437053658,-4495.3744646,0.00048866,2]
[314591004,1708437053668,-3737.0343819,0.00048866,2]
[314591005,1708437053678,-603.5530492,0.00048866,2]
[314591006,1708437053687,-501.7376225,0.00048866,2]
[314591007,1708437053697,-1505.7835805,0.00048866,2]
[314591008,1708437053706,-1251.7678018,0.00048866,2]
[314591009,1708437053716,-18121.7812009,0.00048866,2]
[314591010,1708437053726,-15064.7559936,0.00048866,2]
[314591011,1708437053736,-1146.9676861,0.00048866,2]
[314591012,1708437053746,-953.481787,0.00048866,2]
[314591013,1708437053755,-55404.2137991,0.00048866,2]
[314591014,1708437053764,-46057.8876133,0.00048866,2]
[314591015,1708437053774,-677.2965449,0.00048866,2]
[314591016,1708437053783,-563.0410759,0.00048866,2]
[314591017,1708437053792,-826.9988138,0.00048866,2]
[314591018,1708437053802,-687.4895574,0.00048866,2]
[314591019,1708437053812,-10091.3260269,0.00048866,2]
[314591020,1708437053823,-8388.9857494,0.00048866,2]
[314591021,1708437053834,-1949.7719557,0.00048866,2]
[314591022,1708437053844,-1622.4273299,0.00048866,2]
[314591023,1708437053853,-351.0587848,0.00048867,2]
[314591024,1708437053863,-261.6834004,0.00048867,2]
[314591025,1708437053872,-172.308016,0.00048867,2]
[314591026,1708437053882,-2978.6942993,0.00048867,2]
[314591027,1708437053892,-2220.3542166,0.00048867,2]
[314591028,1708437053904,-1462.0141339,0.00048867,2]
[314591029,1708437053923,-399.9221958,0.00048867,2]
[314591030,1708437053941,-298.1067691,0.00048867,2]
[314591031,1708437053950,-196.2913424,0.00048867,2]
[314591032,1708437053960,-997.7520232,0.00048867,2]
[314591033,1708437053969,-743.7362445,0.00048867,2]
[314591034,1708437053979,-489.7204659,0.00048867,2]
[314591035,1708437053988,-12007.7307864,0.00048867,2]
[314591036,1708437053998,-8950.7055792,0.00048867,2]
[314591037,1708437054007,-5893.680372,0.00048867,2]
[314591038,1708437054017,-759.9958879,0.00048867,2]
[314591039,1708437054027,-566.5099889,0.00048867,2]
[314591040,1708437054037,-373.0240898,0.00048867,2]
[314591041,1708437054047,-36711.5614276,0.00048867,2]
[314591042,1708437054057,-27365.2352419,0.00048867,2]
[314591043,1708437054067,-18018.9090562,0.00048867,2]
[314591044,1708437054077,-448.7856068,0.00048867,2]
[314591045,1708437054087,-334.5301378,0.00048867,2]
[314591046,1708437054097,-220.2746688,0.00048867,2]
[314591047,1708437054107,-547.980301,0.00048867,2]
[314591048,1708437054117,-408.4710446,0.00048867,2]
[314591049,1708437054127,-268.9617881,0.00048867,2]
[314591050,1708437054137,-6686.6454719,0.00048867,2]
[314591051,1708437054149,-4984.3051944,0.00048867,2]
[314591052,1708437054159,-3281.9649168,0.00048867,2]
[314591053,1708437054169,-1295.0827041,0.00048867,2]
[314591054,1708437054178,-967.7380783,0.00048867,2]
[314591055,1708437054188,-640.3934524,0.00048867,2]
[314591056,1708437054197,-78209.0092,0.0004887,10]
[314591057,1708437054207,-150.0,0.00048877,30]
[314591058,1708437054216,-150.0,0.00048877,30]
[314591059,1708437054227,-150.0,0.00048877,30]
[314591060,1708437054236,-172.31999543,0.00048877,30]
[314591061,1708437054247,-150.0,0.00048877,30]
[314591062,1708437054258,-150.0,0.00048877,30]
[314591063,1708437054267,-300.0,0.00048884,2]
[314591064,1708437054277,-606.21,0.00048899,120]
[314591065,1708437054287,-606.21,0.00048899,120]
[314591066,1708437054298,-606.21,0.00048899,120]
[314591067,1708437054308,-606.21,0.00048899,120]
[314591068,1708437054318,-606.21,0.00048899,120]
[314591069,1708437054329,-606.21,0.00048899,120]
[314591070,1708437054339,-606.21,0.00048899,120]
[314591071,1708437054349,-606.21,0.00048899,120]
[314591072,1708437054358,-606.21,0.00048899,120]
[314591073,1708437054368,-606.21,0.00048899,120]
[314591074,1708437054378,-606.21,0.00048899,120]
[314591075,1708437054388,-606.21,0.00048899,120]
[314591076,1708437054398,-606.21,0.00048899,120]
[314591077,1708437054408,-606.21,0.00048899,120]
[314591078,1708437054418,-606.39595149,0.00048899,120]
[314591079,1708437054429,-150.0,0.00048899,8]
[314591080,1708437054439,-150.0,0.00048899,8]
[314591081,1708437054449,-150.0,0.00048899,8]
[314591082,1708437054460,-150.0,0.00048899,8]
[314591083,1708437054470,-150.0,0.00048899,8]
[314591084,1708437054480,-150.0,0.00048899,8]
[314591085,1708437054490,-300.0,0.00048899,2]
[314591086,1708437054500,-300.0,0.00048899,2]
[314591087,1708437054509,-422.08920151,0.00048899,2]
[314591088,1708437054519,-100000.0,0.000489,38]
[314591089,1708437054529,-100000.0,0.000489,39]
[314591090,1708437054538,-10333.03492393,0.000489,2]
[314591091,1708437054548,-200.0,0.000489,24]
[314591092,1708437054558,-2005.5997975,0.000489,30]
[314591093,1708437054568,-2026678.06424419,0.000489,7]
[314591094,1708437054581,-1235581.19273563,0.000489,7]
[314591095,1708437054593,-360.56934079,0.000489,7]
[314591096,1708437054604,-2530.21290295,0.000489,7]
[314591097,1708437054616,-273.89680149,0.000489,7]
[314591098,1708437054628,-146059.37146684,0.000489,7]
[314591099,1708437054639,-42230.84900013,0.000489,7]
[314591100,1708437054652,-5275.27000001,0.000489,7]
[314591101,1708437054664,-15739.03220259,0.000489,7]
[314591102,1708437054675,-723.50238996,0.000489,7]
[314591103,1708437054690,-358.17286643,0.000489,7]
[314591104,1708437054703,-541.88479081,0.000489,7]
[314591105,1708437054715,-2052.12205669,0.000489,7]
[314591106,1708437054728,-1194.42889181,0.000489,7]
[314591107,1708437054738,-151.0,0.000489,14]
[314591108,1708437054748,-151.0,0.000489,14]
[314591109,1708437054758,-151.0,0.000489,14]
[314591110,1708437054768,-3866.801455,0.000489,14]
[314591111,1708437054778,-3866.801455,0.000489,14]
[314591112,1708437054787,-217.755189,0.000489,14]
[314591113,1708437054797,-154.31469957,0.00048902,30]
[314591114,1708437054807,-273.3,0.00048904,2]
[314591115,1708437054817,-812.0,0.00048904,2]
[314591116,1708437054827,-1380.31618,0.0004892,30]
[314591117,1708437054837,-651.38349163,0.00048921,30]
[314591118,1708437054847,-154.05474448,0.00048921,30]
[314591119,1708437054857,-168.19571974,0.00048937,30]
[314591120,1708437054866,-153.67856101,0.00048948,30]
[314591121,1708437054876,-1579.0,0.00048965,30]
[314591122,1708437054885,-151.31004068,0.00048979,30]
[314591123,1708437054896,-200.0,0.00048987,83]
[314591124,1708437054909,-1500.000001,0.00049,87]
[314591125,1708437054919,-300.0,0.00049,49]
[314591126,1708437054929,-1158.0,0.00049,30]
[314591127,1708437054939,-10000.0,0.00049,120]
[314591128,1708437054949,-10000.0,0.00049,120]
[314591129,1708437054959,-5000.0,0.00049,120]
[314591130,1708437054969,-24800.0,0.00049,7]
[314591131,1708437054980,-763.38798797,0.00049,10]
[314591132,1708437054990,-4000.0,0.00049,15]
[314591133,1708437055001,-312.2,0.00049,60]
[314591134,1708437055011,-152209.46012784,0.00049,7]
[314591135,1708437055021,-4034.65,0.00049,30]
[314591136,1708437055031,-2015.0,0.00049,120]
[314591137,1708437055041,-30155.74930698,0.00049,9]
[314591138,1708437055051,-4052.0,0.00049,90]
[314591139,1708437055060,-121385.03868632,0.00049,120]
[314591140,1708437055070,-2053.06366362,0.00049,2]
[314591141,1708437055080,-2000.0,0.00049,2]
[314591142,1708437055091,-7667.0,0.00049,30]
[314591143,1708437055102,-233.40424306,0.00049,120]
[314591144,1708437055112,-12788.37398893,0.00049,4]
[314591145,1708437055125,-1052.26171299,0.00049,4]
[314591146,1708437055144,-3249.45422162,0.00049,4]
[314591147,1708437055159,-23508.48946381,0.00049,4]
[314591148,1708437055169,-857.11351409,0.00049,2]
[314591149,1708437055181,-1214.90332921,0.00049,2]
[314591150,1708437055192,-10740.30106432,0.00049,15]
[314591151,1708437055204,-17315.49351,0.00049,15]
[314591152,1708437055217,-13833.184442,0.00049,15]
[314591153,1708437055231,-993.61482679,0.00049,15]
[314591154,1708437055244,-3326.73627457,0.00049,15]
[314591155,1708437055323,-417.16966564,0.00034793,4]
[314591156,1708437055333,-500.0,0.00035616,2]
[314591157,1708437055343,-549.95997327,0.00035616,2]
[314591158,1708437055353,-500.0,0.00035616,2]
[314591159,1708437055362,-500.0,0.00035616,2]
[314591160,1708437055372,-541.96788447,0.00035616,2]
[314591161,1708437055382,-449.22699482,0.0003589,2]
[314591162,1708437055391,-500.0,0.0003589,2]
[314591163,1708437055403,-500.0,0.0003589,2]
[314591164,1708437055412,-500.0,0.00036164,2]
[314591165,1708437055422,-38400.90326828,0.00049,15]
[314591166,1708437055440,-5145.00088,0.00049,15]
[314591167,1708437055452,-1016.18242901,0.00049,15]
[314591168,1708437055473,-526.92248804,0.00035616,2]
[314591169,1708437055483,-500.0,0.00036438,2]
[314591170,1708437055492,-434.89190896,0.00049,15]
[314591171,1708437055504,-334.61576588,0.00049,15]
[314591172,1708437055516,-6278.19931623,0.00049,15]
[314591173,1708437055529,-946.20188826,0.00049,15]
[314591174,1708437055541,-3573.10698417,0.00049,15]
[314591175,1708437055562,-6543.29054855,0.00049,15]
[314591176,1708437055574,-1053.3078072,0.00049,15]
[314591177,1708437055586,-1582.02329985,0.00049,15]
[314591178,1708437055598,-276.17645977,0.00049,15]
[314591179,1708437055610,-2346.49215852,0.00049,15]
[314591180,1708437055623,-855.04410322,0.00049,15]
[314591181,1708437055832,-459.8208501,0.00049,15]
[314591182,1708437055846,-890.48038266,0.00049,15]
[314591183,1708437055858,-161855.53393338,0.00049,15]
[314591184,1708437055868,-20000.0,0.00049,20]
[314591185,1708437055878,-1100.0,0.00049,120]
[314591186,1708437055887,-568.53268569,0.00049,15]
[314591187,1708437055898,-150.0,0.00049007,30]
[314591188,1708437055910,-150.04564581,0.00049035,30]
[314591189,1708437055919,-153.67856101,0.0004906,30]
[314591190,1708437055929,-500.0,0.0004908,16]
[314591191,1708437055939,-500.0,0.0004908,16]
[314591192,1708437055948,-500.0,0.0004908,16]
[314591193,1708437055957,-500.0,0.0004908,16]
[314591194,1708437055967,-500.0,0.0004908,24]
[314591195,1708437055976,-1616.23,0.00049098,30]
[314591196,1708437055985,-1616.23,0.00049098,30]
[314591197,1708437055994,-169.57201142,0.00049101,30]
[314591198,1708437056003,-196.02103039,0.00049131,30]
[314591199,1708437056013,-150.0,0.00049137,30]
[314591200,1708437056022,-200.0,0.000492,26]
[314591201,1708437056032,-155.74813687,0.00049206,30]
[314591202,1708437056042,-196.02103039,0.00049229,30]
[314591203,1708437056051,-2000.0,0.0004923,90]
[314591204,1708437056061,-153.67856101,0.00049231,30]
[314591205,1708437056070,-154.83518535,0.00049236,30]
[314591206,1708437056079,-604.0,0.00049251,7]
[314591207,1708437056089,-150.0,0.00049267,30]
[314591208,1708437056098,-2000.0,0.000493,2]
[314591209,1708437056108,-154.0388237,0.00049302,30]
[314591210,1708437056117,-153.67856101,0.00049302,30]
[314591211,1708437056126,-153.67856101,0.00049305,30]
[314591212,1708437056136,-280.0,0.00049315,30]
[314591213,1708437056145,-280.0,0.00049315,30]
[314591214,1708437056155,-280.0,0.00049315,30]
[314591215,1708437056165,-353.0,0.00049315,30]
[314591216,1708437056174,-280.0,0.00049315,30]
[314591217,1708437056183,-1628.763993,0.00049315,30]
[314591218,1708437056192,-500.0,0.00049315,2]
[314591219,1708437056201,-500.0,0.00049315,2]
[314591220,1708437056210,-500.0,0.00049315,2]
[314591221,1708437056220,-500.0,0.00049315,2]
[314591222,1708437056234,-500.0,0.00049315,2]
[314591223,1708437056244,-500.0,0.00049315,2]
[314591224,1708437056253,-500.0,0.00049315,2]
[314591225,1708437056262,-500.0,0.00049315,2]
[314591226,1708437056273,-500.0,0.00049315,2]
[314591227,1708437056282,-500.0,0.00049315,2]
[314591228,1708437056291,-500.0,0.00049315,2]
[314591229,1708437056300,-500.0,0.00049315,6]
[314591230,1708437056310,-533.88870207,0.00049315,6]
[314591231,1708437056320,-750.0,0.00049315,7]
[314591232,1708437056331,-500.0,0.00049315,120]
[314591233,1708437056342,-500.0,0.00049315,120]
[314591234,1708437056352,-600.81106926,0.00049315,120]
[314591235,1708437056362,-154.05474448,0.00049356,30]
[314591236,1708437056371,-1616.23,0.00049371,30]
[314591237,1708437056381,-1616.23,0.00049371,30]
[314591238,1708437056390,-175.35257065,0.00049375,30]
[314591239,1708437056401,-150.0,0.00049397,30]
[314591240,1708437056410,-150.0,0.00049397,30]
[314591241,1708437056420,-300.0,0.000494,10]
[314591242,1708437056429,-200.0,0.00049402,28]
[314591243,1708437056438,-167.49074302,0.00049437,30]
[314591244,1708437056448,-12000.0,0.0004944,7]
[314591245,1708437056457,-1579.0,0.0004946,30]
[314591246,1708437056466,-195.0,0.00049463,2]
[314591247,1708437056476,-155.58772598,0.00049484,30]
[314591248,1708437056485,-651.38349163,0.00049486,30]
[314591249,1708437056495,-151.0212031,0.00049498,41]
[314591250,1708437056505,-250.0,0.000495,60]
[314591251,1708437056514,-544.86400336,0.000495,2]
[314591252,1708437056523,-22701.15871138,0.00049509,2]
[314591253,1708437056532,-150.0,0.00049527,30]
[314591254,1708437056542,-158.4013139,0.00049552,30]
[314591255,1708437056552,-196.02103039,0.00049552,30]
[314591256,1708437056561,-741.71,0.00049564,120]
[314591257,1708437056570,-158.4013139,0.00049572,30]
[314591258,1708437056579,-175.35257065,0.00049575,30]
[314591259,1708437056589,-11896.2856276,0.000496,30]
[314591260,1708437056598,-200903.05109797,0.0004961,9]
[314591261,1708437056607,-167.61786596,0.0004962,30]
[314591262,1708437056617,-168.19571975,0.00049628,30]
[314591263,1708437056627,-1616.23,0.00049644,30]
[314591264,1708437056636,-1616.23,0.00049644,30]
[314591265,1708437056646,-150.0,0.00049657,30]
[314591266,1708437056657,-1500.0,0.0004966,95]
[314591267,1708437056667,-172.84564799,0.00049672,30]
[314591268,1708437056677,-10000.0,0.0004968,120]
[314591269,1708437056686,-260.91296138,0.000497,120]
[314591270,1708437056696,-41985.17504162,0.000497,120]
[314591271,1708437056705,-736.89,0.000497,7]
[314591272,1708437056715,-200.0,0.000497,27]
[314591273,1708437056725,-155.18298927,0.00049737,30]
[314591274,1708437056734,-651.38349163,0.0004974,30]
[314591275,1708437056744,-651.38349163,0.00049742,30]
[314591276,1708437056753,-155.74813687,0.00049758,30]
[314591277,1708437056763,-154.83518535,0.00049761,30]
[314591278,1708437056772,-196.02103039,0.00049767,30]
[314591279,1708437056782,-150.04564581,0.00049771,30]
[314591280,1708437056791,-651.38349163,0.00049778,30]
[314591281,1708437056800,-154.83518535,0.00049778,30]
[314591282,1708437056809,-150.0,0.00049787,30]
[314591283,1708437056819,-200.15948518,0.000498,120]
[314591284,1708437056828,-30009.5479602,0.000498,10]
[314591285,1708437056838,-20000.0,0.000498,120]
[314591286,1708437056847,-607.98339699,0.000498,30]
[314591287,1708437056857,-10523.29355752,0.000498,11]
[314591288,1708437056867,-169.93932615,0.000498,11]
[314591289,1708437056876,-977.32023984,0.000498,2]
[314591290,1708437056886,-175.35257065,0.00049803,30]
[314591291,1708437056896,-2252.8,0.00049829,117]
[314591292,1708437056908,-157.20941371,0.00049832,52]
[314591293,1708437056917,-651.38349163,0.00049834,30]
[314591294,1708437056926,-166.66666667,0.00049836,60]
[314591295,1708437056936,-202.438289,0.00049858,30]
[314591296,1708437056945,-76606.0,0.0004986,15]
[314591297,1708437056955,-1883.75,0.00049863,30]
[314591298,1708437056965,-20000.0,0.0004989,10]
[314591299,1708437056974,-20000.0,0.0004989,15]
[314591300,1708437056984,-20000.0,0.0004989,20]
[314591301,1708437056994,-7029.47535159,0.0004989,25]
[314591302,1708437057008,-12970.52464841,0.0004989,25]
[314591303,1708437057017,-20106.5687555,0.0004989,30]
[314591304,1708437057027,-163891.0088984,0.0004989,31]
[314591305,1708437057036,-200.0,0.000499,25]
[314591306,1708437057046,-202688.14890803,0.000499,120]
[314591307,1708437057057,-1952.08083824,0.000499,120]
[314591308,1708437057069,-2640.45,0.000499,120]
[314591309,1708437057082,-1493.4,0.000499,120]
[314591310,1708437057097,-500.0,0.00036712,2]
[314591311,1708437057107,-81.38216279,0.000499,120]
[314591312,1708437057119,-337.54297358,0.000499,120]
[314591313,1708437057131,-41202.25481469,0.000499,120]
[314591314,1708437057142,-31019.31916293,0.000499,120]
[314591315,1708437057157,-29692.98580409,0.000499,120]
[314591316,1708437057169,-5096.79269139,0.000499,120]
[314591317,1708437057182,-17509.64907454,0.000499,120]
[314591318,1708437057194,-520.38152683,0.000499,120]
[314591319,1708437057207,-3436.91126889,0.000499,120]
[314591320,1708437057220,-26384.7144,0.000499,120]
[314591321,1708437057234,-5280.5,0.000499,120]
[314591322,1708437057287,-1571399.15501061,0.000499,120]
[314591323,1708437057299,-446.13,0.000499,120]
[314591324,1708437057311,-347.66353361,0.000499,120]
[314591325,1708437057326,-170665.80025475,0.000499,120]
[314591326,1708437057338,-237734.13166703,0.000499,120]
[314591327,1708437070092,796463.2138709,0.00023,2]
[314591328,1708437145183,469.31444043,0.00023,2]
[314591329,1708437161178,469.31444043,0.00023,2]
[314591331,1708437181177,558.83496391,0.00023,2]
[314591332,1708437213095,-4289.5561115,0.0002509,2]
[314591333,1708437213117,-2784.30408691,0.0002509,2]
[314591334,1708437232606,515.0,0.00023,2]
[314591335,1708437232629,62926.13980159,0.00023,2]
[314591336,1708437232654,474948.45691668,0.00023,2]
[314591341,1708437265653,215.82244978,0.000137,2]
[314591342,1708437269945,5105.48223,0.000232,2]
[314591343,1708437305849,2611.01980214,0.000232,2]
[314591344,1708437323853,2611.01980214,0.000232,2]
[314591345,1708437343854,2611.01980214,0.000232,2]
[314591346,1708437361858,2611.01980214,0.000232,2]
[314591347,1708437377851,2611.01980214,0.000232,2]
[314591348,1708437394285,2611.01980214,0.000232,2]
[314591349,1708437411885,2611.01980214,0.000232,2]
[314591350,1708437433857,1163.46082661,0.000232,2]
[314591353,1708437963360,-159.5667277,0.000249,2]
[314591354,1708437963384,-2840.4332723,0.00025,2]
[314591355,1708437965220,-3000.0,0.00025,2]
[314591356,1708437966732,-3000.0,0.00025,2]
[314591357,1708437968003,-3000.0,0.00025,2]
[314591358,1708437969325,-3000.0,0.00025,2]
[314591359,1708437970562,-3000.0,0.00025,2]
[314591360,1708437976228,-600.0,0.00025,2]
[314591373,1708438232186,-615.13824104,0.00024899,2]
[314591374,1708438232197,-2985.4498,0.000249,2]
[314591375,1708438232207,-158.67750727,0.000249,2]
[314591376,1708438232217,-8037.7883892,0.00025,2]
[314591377,1708438232227,-158.67750721,0.00025775,2]
[314591378,1708438232236,-3644.9227114,0.000263,2]
[314591379,1708438232246,-158.67750721,0.00026651,2]
[314591380,1708438232255,-184.0,0.0002701,2]
[314591381,1708438232266,-261.20740967,0.000272,2]
[314591382,1708438232275,-158.67750721,0.00027526,2]
[314591383,1708438232285,-151.6268332,0.000279,2]
[314591384,1708438232295,-158.67750721,0.00028401,2]
[314591385,1708438232307,-328.72689031,0.00029,2]
[314591386,1708438232317,-158.67750721,0.00029276,2]
[314591387,1708438232327,-2035.37081666,0.000299,2]
[314591388,1708438232337,-2180.47,0.000299,2]
[314591389,1708438232346,-1999.91,0.000299,2]
[314591390,1708438232356,-499.99,0.000299,2]
[314591391,1708438232366,-158.67750721,0.00030152,2]
[314591392,1708438232376,-454.88,0.00030644,2]
[314591393,1708438232386,-423.85500001,0.0003099,2]
[314591394,1708438232395,-9368.45166702,0.00031,7]
[314591395,1708438232407,-158.67750721,0.00031027,2]
[314591396,1708438232417,-1000.0,0.00032115,2]
[314591397,1708438232427,-220.7,0.00032184,2]
[314591398,1708438232436,-425.4,0.00032197,2]
[314591399,1708438232446,-1285.35,0.00032201,2]
[314591400,1708438232455,-318.24,0.0003223,2]
[314591401,1708438232464,-881.46864569,0.0003231,4]
[314591402,1708438232474,-865.45303637,0.00032311,4]
[314591403,1708438232482,-17466.73720613,0.00032312,2]
[314591404,1708438232502,-1487.50061937,0.00032312,2]
[314591405,1708438232536,-509.14459552,0.00032312,2]
[314591406,1708438232635,-661.68277074,0.00032312,2]
[314591407,1708438232651,-638.51,0.00032312,2]
[314591408,1708438232671,-3116.42480824,0.00032312,2]
[314591409,1708438232680,-2000.0,0.00032333,2]
[314591410,1708438232689,-151.78,0.00032364,2]
[314591411,1708438232698,-250.0,0.00032438,2]
[314591412,1708438232707,-156.64,0.00032439,2]
[314591413,1708438232716,-1449.35,0.00032455,2]
[314591414,1708438232725,-310.36,0.00032481,2]
[314591415,1708438232734,-250.0,0.00032489,2]
[314591416,1708438232744,-754.46,0.00032492,2]
[314591417,1708438232753,-640.95,0.00032583,2]
[314591418,1708438232762,-150.0,0.00032621,2]
[314591419,1708438232771,-1000.0,0.00032645,2]
[314591420,1708438232780,-196.02,0.00032697,2]
[314591421,1708438232790,-160.82,0.00032698,2]
[314591422,1708438232799,-196.02,0.00032869,2]
[314591423,1708438232808,-454.88,0.00032908,2]
[314591424,1708438232817,-196.02,0.00033041,2]
[314591425,1708438232827,-196.02,0.00033213,2]
[314591426,1708438232835,-156.64,0.00033284,2]
[314591427,1708438232844,-196.02,0.00033385,2]
[314591428,1708438232853,-164.1,0.00033445,2]
[314591429,1708438232862,-196.02,0.00033557,2]
[314591430,1708438232871,-162.7,0.00033595,2]
[314591431,1708438232881,-196.02,0.00033729,2]
[314591433,1708438232890,-425.4,0.00033841,2]
[314591435,1708438232899,-196.02,0.00033901,2]
[314591437,1708438232909,-151.78,0.00033982,2]
[314591439,1708438232918,-196.02,0.00034073,2]
[314591441,1708438232928,-156.64,0.0003413,2]
[314591443,1708438232937,-196.02,0.00034245,2]
[314591445,1708438232947,-196.02,0.00034417,2]
[314591447,1708438232957,-580.08696072,0.00034419,4]
[314591449,1708438232966,-796.3085,0.0003442,2]
[314591451,1708438232976,-604.716406,0.0003452,2]
[314591453,1708438232985,-4174.705511,0.0003452,2]
[314591455,1708438232995,-363.811688,0.0003452,2]
[314591456,1708438233005,-1587.090556,0.0003452,2]
[314591457,1708438233014,-348.706625,0.0003452,2]
[314591458,1708438233023,-1188.25,0.00034521,2]
[314591459,1708438233033,-196.02,0.00034589,2]
[314591460,1708438233042,-2453.5621,0.00034694,2]
[314591461,1708438233051,-196.02,0.00034762,2]
[314591462,1708438233060,-907.074609,0.00034794,2]
[314591463,1708438233069,-6262.058267,0.00034794,2]
[314591464,1708438233078,-545.717532,0.00034794,2]
[314591465,1708438233087,-2265.34438994,0.00034794,2]
[314591466,1708438233103,-115.29144406,0.00034794,2]
[314591467,1708438233113,-523.059938,0.00034794,2]
[314591468,1708438233123,-3198.72794704,0.0003489,6]
[314591469,1708438233133,-362.0623,0.000349,2]
[314591470,1708438233142,-1000.0,0.000349,2]
[314591471,1708438233152,-15891.6870719,0.000349,2]
[314591472,1708438233167,-895.5,0.000349,2]
[314591473,1708438233179,-1834.03635294,0.000349,2]
[314591474,1708438233422,-2690.16915256,0.000349,2]
[314591475,1708438233434,-344349.1046226,0.000349,2]
[314591476,1708438233443,-530.9227,0.000349,7]
[314591477,1708438233453,-1541.1065,0.000349,2]
[314591478,1708438233462,-1015.01051756,0.000349,2]
[314591479,1708438233472,-399.84099338,0.00034921,6]
[314591480,1708438233481,-1209.432812,0.00034931,2]
[314591481,1708438233491,-8349.411023,0.00034931,2]
[314591482,1708438233500,-727.623377,0.00034931,2]
[314591483,1708438233509,-3174.181112,0.00034931,2]
[314591484,1708438233519,-697.41325,0.00034931,2]
[314591485,1708438233528,-196.02,0.00034934,2]
[314591486,1708438233537,-799.68198676,0.0003499,7]
[314591487,1708438233547,-218.63280081,0.0003499,2]
[314591488,1708438233556,-17022.32806788,0.00035,30]
[314591489,1708438233567,-3059.83252637,0.00035,30]
[314591490,1708438233576,-43030.06981662,0.00035,2]
[314591491,1708438233604,-21014.202,0.00035,2]
[314591495,1708438238205,-158.67750721,0.00031902,2]
[314591496,1708438238215,-7133.5868356,0.00035,2]
[314591497,1708438238287,-44138.64860776,0.00035,2]
[314591498,1708438238297,-1511.791015,0.00035068,2]
[314591499,1708438238309,-10436.763779,0.00035068,2]
[314591500,1708438238319,-909.529221,0.00035068,2]
[314591501,1708438238329,-3967.72639,0.00035068,2]
[314591502,1708438238339,-871.766563,0.00035068,2]
[314591503,1708438238348,-196.02,0.00035106,2]
[314591504,1708438238357,-454.88,0.00035172,2]
[314591505,1708438238367,-162.57744652,0.00035242,7]
[314591506,1708438238376,-196.02,0.00035278,2]
[314591507,1708438238385,-2116.507421,0.00035342,2]
[314591508,1708438238395,-14611.46929,0.00035342,2]
[314591509,1708438238404,-1273.340909,0.00035342,2]
[314591510,1708438238416,-5554.816946,0.00035342,2]
[314591511,1708438238425,-1220.473188,0.00035342,2]
[314591512,1708438238435,-155.0,0.00035414,2]
[314591513,1708438238443,-178.15624709,0.00035414,2]
[314591514,1708438238453,-9884.2485,0.00035416,2]
[314591515,1708438238462,-462.20626302,0.00035416,7]
[314591516,1708438238471,-207.22728549,0.00035416,7]
[314591517,1708438238479,-196.02,0.0003545,2]
[314591518,1708438238488,-188.19652486,0.00035474,8]
[314591519,1708438238497,-539.36267726,0.00035474,2]
[314591520,1708438238507,-425.4,0.00035485,2]